fUSD/lending_fUSD_20251102
["ID","MTS","AMOUNT","RATE_DAILY","PERIOD"]
[392864665,1762082847624,500.0,0.00012012,2]
[392864666,1762082847663,500.0,0.00011015,2]
[392864667,1762082848328,500.0,0.00012012,2]
[392864668,1762082848362,501.73502552,0.00011015,2]
[392864669,1762082848593,500.0,0.00012012,2]
[392864670,1762082848705,500.0,0.00012012,2]
[392864671,1762082848991,500.0,0.00012012,2]
[392864672,1762082849397,500.0,0.00012012,2]
[392864673,1762082849745,500.0,0.00011015,2]
[392864674,1762082850146,500.0,0.00011015,2]
[392864675,1762082850500,500.0,0.00011015,2]
[392864676,1762082850811,810.0,0.00012012,2]
[392864677,1762082850887,500.0,0.00011015,2]
[392864678,1762082850964,1000.0,0.00012012,2]
[392864679,1762082851165,500.0,0.00011015,2]
[392864680,1762082851231,798.63151385,0.00012012,2]
[392864681,1762082851271,201.36848615,0.00012012,2]
[392864682,1762082851487,500.0,0.00011015,2]
[392864683,1762082851778,1000.0,0.00012012,2]
[392864684,1762082851864,500.0,0.00011015,2]
[392864685,1762082851941,1000.0,0.00012012,2]
[392864686,1762082852123,500.0,0.00011015,2]
[392864687,1762082852228,1000.0,0.00012012,2]
[392864688,1762082852458,757.83355719,0.00011015,2]
[392864689,1762082852579,1000.0,0.00012012,2]
[392864690,1762082852961,1000.0,0.00012012,2]
[392864691,1762082853322,1000.0,0.00012012,2]
[392864692,1762082853732,1000.0,0.00012012,2]
[392864693,1762082854041,540.80795666,0.00012012,2]
[392864694,1762082854067,459.19204334,0.00012012,2]
[392864695,1762082854363,1000.0,0.00012012,2]
[392864696,1762082854552,579.25589927,0.00012012,2]
[392864697,1762082854715,1000.0,0.00012012,2]
[392864698,1762082854777,500.0,0.00012012,2]
[392864699,1762082855048,1000.0,0.00012012,2]
[392864700,1762082855138,961.8190546,0.00011015,2]
[392864701,1762082855505,1000.0,0.00012012,2]
[392864702,1762082855732,1000.0,0.00011015,2]
[392864703,1762082855767,500.0,0.00012012,2]
[392864704,1762082855839,500.0,0.00012012,2]
[392864705,1762082855927,500.0,0.00012012,2]
[392864706,1762082855964,500.0,0.00012012,2]
[392864707,1762082856077,499.74300279,0.00011015,2]
[392864708,1762082856101,500.25699721,0.00011015,2]
[392864709,1762082856176,509.32199567,0.00011015,2]
[392864710,1762082856220,505.12178378,0.00011015,2]
[392864711,1762082856283,500.0,0.00012012,2]
[392864712,1762082856363,500.0,0.00012012,2]
[392864713,1762082856443,1000.0,0.00011015,2]
[392864714,1762082856700,500.60685629,0.00011015,2]
[392864715,1762082856736,500.0,0.00012012,2]
[392864716,1762082856801,1000.0,0.00011015,2]
[392864717,1762082857034,500.0,0.00012012,2]
[392864718,1762082857074,500.0,0.00011015,2]
[392864719,1762082857133,1000.0,0.00011015,2]
[392864720,1762082857228,500.0,0.00012012,2]
[392864721,1762082857321,500.0,0.00012012,2]
[392864722,1762082857465,571.93881778,0.00011015,2]
[392864723,1762082857511,500.0,0.00012012,2]
[392864724,1762082857554,412.76354927,0.00011015,2]
[392864725,1762082857577,587.23645073,0.00011015,2]
[392864727,1762082857861,500.0,0.00012012,2]
[392864728,1762082857899,500.0,0.00012012,2]
[392864729,1762082857965,500.0,0.00012012,2]
[392864730,1762082858026,1000.0,0.00011015,2]
[392864731,1762082858070,500.0,0.00012012,2]
[392864732,1762082858127,500.0,0.00012012,2]
[392864733,1762082858203,500.0,0.00012012,2]
[392864734,1762082858268,500.0,0.00012012,2]
[392864735,1762082858856,1000.0,0.00011015,2]
[392864736,1762082858915,500.0,0.00012012,2]
[392864737,1762082859183,500.0,0.00012012,2]
[392864738,1762082859237,201.56852478,0.00011015,2]
[392864739,1762082859261,798.43147522,0.00011015,2]
[392864740,1762082859300,500.0,0.00012012,2]
[392864741,1762082859385,500.0,0.00012012,2]
[392864742,1762082859458,500.0,0.00011015,2]
[392864743,1762082859508,614.34207405,0.00011015,2]
[392864744,1762082859533,385.65792595,0.00011015,2]
[392864745,1762082859574,500.0,0.00011015,2]
[392864746,1762082859623,500.0,0.00012012,2]
[392864747,1762082859677,500.0,0.00011015,2]
[392864748,1762082859720,500.0,0.00012012,2]
[392864749,1762082859775,1000.0,0.00011015,2]
[392864750,1762082859813,500.0,0.00011015,2]
[392864751,1762082859884,500.0,0.00012012,2]
[392864752,1762082860008,851.46097798,0.00011015,2]
[392864753,1762082860103,500.0,0.00011015,2]
[392864754,1762082860139,1000.0,0.00011015,2]
[392864755,1762082860173,500.0,0.00011015,2]
[392864756,1762082860264,500.0,0.00011015,2]
[392864757,1762082860308,1000.0,0.00011015,2]
[392864758,1762082860347,500.0,0.00011015,2]
[392864759,1762082860386,500.0,0.00011015,2]
[392864760,1762082860532,262.89109607,0.00011015,2]
[392864761,1762082860557,847.05793237,0.00011015,2]
[392864762,1762082860595,500.0,0.00011015,2]
[392864763,1762082860780,885.35192406,0.00011015,2]
[392864764,1762082861025,500.0,0.00011015,2]
[392864765,1762082861181,500.0,0.00011015,2]
[392864766,1762082861477,613.80193287,0.00011015,2]
[392864767,1762082862257,202.0,0.00014304,2]
[392864768,1762082869988,245.0,0.00014331,2]
[392864769,1762082873439,245.0,0.00014143,2]
[392864770,1762082873481,2690.71,0.00014013,2]
[392864772,1762082880785,245.0,0.00014212,2]
[392864774,1762082885521,658.87502431,0.0001439,2]
[392864782,1762082891346,245.0,0.00014658,2]
[392864784,1762082895032,245.0,0.00014399,2]
[392864786,1762082896640,188.14826826,0.00014619,2]
[392864791,1762082902027,245.0,0.00014421,2]
[392864796,1762082908485,245.0,0.00014586,2]
[392864799,1762082912764,150.0,0.00014459,2]
[392864804,1762082919089,245.0,0.00014539,2]
[392864805,1762082925599,239.01405512,0.000144,2]
[392864814,1762082996665,65.05086301,0.00013949,2]
[392864815,1762082996689,84.94913699,0.00013949,2]
[392864817,1762083008146,200.0,0.00014658,2]
[392864822,1762083020966,882.99025727,0.00014601,2]
[392864830,1762083032204,-150.0,0.00014721,2]
[392864833,1762083032213,-150.0,0.00014721,2]
[392864835,1762083032222,-300.0,0.00014727,2]
[392864837,1762083032232,-250.0,0.00014734,2]
[392864838,1762083032242,-1054.0,0.00014747,2]
[392864839,1762083032251,-245.0,0.00014762,2]
[392864841,1762083032260,-1054.0,0.00014784,2]
[392864842,1762083032269,-1054.0,0.00014828,2]
[392864843,1762083032278,-245.0,0.00014832,2]
[392864844,1762083032287,-218.0,0.00014846,2]
[392864845,1762083032296,-303.61953,0.0001485,2]
[392864846,1762083032306,-1235.8175691,0.0001488,2]
[392864847,1762083032315,-300.0,0.00014898,2]
[392864848,1762083032324,-328.65260554,0.00014898,2]
[392864849,1762083032434,934.07305528,0.00014627,2]
[392864850,1762083032529,-871.34739446,0.00014898,2]
[392864851,1762083032539,-1346.70100595,0.00014899,2]
[392864852,1762083032549,-150.0,0.00014899,2]
[392864853,1762083032559,-1346.70100586,0.00014899,2]
[392864854,1762083032568,-1346.70100586,0.00014899,2]
[392864855,1762083032578,-1346.70100586,0.00014899,2]
[392864857,1762083032587,-1346.70100586,0.00014899,2]
[392864858,1762083032597,-1346.70100586,0.000149,2]
[392864859,1762083032606,-1346.70100586,0.000149,2]
[392864860,1762083032616,-1346.70100586,0.000149,2]
[392864861,1762083032625,-1346.70100586,0.000149,2]
[392864862,1762083032635,-1925.79015431,0.000149,2]
[392864863,1762083032671,-453.14,0.000149,2]
[392864923,1762083038232,-1576.38984569,0.000149,2]
[392864925,1762083038243,-184.43297118,0.000149,2]
[392864926,1762083038252,-10000.01,0.000149,2]
[392864927,1762083038263,-367.2862,0.000149,2]
[392864928,1762083038272,-692.33986754,0.000149,2]
[392864929,1762083038283,-384.68373694,0.000149,2]
[392864930,1762083038293,-198.65058741,0.000149,2]
[392864931,1762083038302,-1484.9158,0.000149,2]
[392864932,1762083038312,-577.22327326,0.000149,2]
[392864933,1762083038322,-1346.70100586,0.000149,2]
[392864934,1762083038332,-245.0,0.00014914,2]
[392864935,1762083038342,-245.0,0.00014947,2]
[392864936,1762083038354,-477.45087779,0.00014972,2]
[392864937,1762083038363,-500.0,0.00014973,2]
[392864938,1762083038373,-554.47041519,0.00014973,2]
[392864939,1762083038383,-500.0,0.00014973,2]
[392864940,1762083038393,-500.0,0.00014973,2]
[392864941,1762083038403,-500.0,0.00014973,2]
[392864942,1762083038412,-500.0,0.00014973,2]
[392864943,1762083038422,-500.0,0.00014973,2]
[392864944,1762083038433,-500.0,0.00014973,2]
[392864945,1762083038443,-542.320165,0.00014973,2]
[392864947,1762083038456,-161.80681393,0.00014973,2]
[392864949,1762083038466,-500.0,0.00014973,2]
[392864951,1762083038476,-500.0,0.00014973,2]
[392864953,1762083038486,-500.0,0.00014973,2]
[392864954,1762083038496,-500.0,0.00014973,2]
[392864956,1762083038505,-500.0,0.00014973,2]
[392864958,1762083038514,-500.0,0.00014973,2]
[392864960,1762083038524,-150.12458609,0.00014973,2]
[392864962,1762083038534,-602.15865985,0.00014973,2]
[392864964,1762083038544,-500.0,0.00014973,2]
[392864966,1762083038554,-500.63233885,0.00014973,2]
[392864968,1762083038564,-1054.0,0.00014973,2]
[392864970,1762083038574,-151.0,0.00014977,2]
[392864972,1762083038584,-1638.279,0.00014979,2]
[392864974,1762083038594,-180.185,0.00014979,2]
[392864976,1762083038604,-500.0,0.00014979,2]
[392864978,1762083038613,-500.0,0.00014979,2]
[392864980,1762083038622,-500.0,0.00014979,2]
[392864982,1762083038632,-500.0,0.00014979,2]
[392864984,1762083038641,-520.0,0.00014979,2]
[392864986,1762083038651,-500.0,0.00014979,2]
[392864988,1762083038661,-500.0,0.00014979,2]
[392864989,1762083038670,-500.0,0.00014979,2]
[392864991,1762083038679,-500.0,0.00014979,2]
[392864993,1762083038689,-500.0,0.00014979,2]
[392864995,1762083038699,-500.0,0.00014979,2]
[392864997,1762083038708,-500.0,0.00014979,2]
[392864998,1762083038718,-500.0,0.00014979,2]
[392864999,1762083038727,-51356.88301592,0.0001498,2]
[392865001,1762083038739,-4005.20858304,0.0001498,2]
[392865004,1762083038766,-2358.91793134,0.0001498,2]
[392865007,1762083038937,-361.85222901,0.0001498,2]
[392865008,1762083038957,-32865.83224277,0.0001498,2]
[392865009,1762083038967,-303.61953,0.0001498,2]
[392865010,1762083038976,-151.0,0.00014984,2]
[392865011,1762083038985,-2140.0,0.00014984,2]
[392865012,1762083038995,-150.0,0.00014986,2]
[392865013,1762083039006,-207.81,0.00014986,2]
[392865014,1762083039016,-152.3753337,0.00014986,2]
[392865015,1762083039026,-210.0123376,0.00014986,2]
[392865016,1762083039035,-153.51864397,0.00014986,2]
[392865017,1762083039044,-155.88322854,0.00014986,2]
[392865018,1762083039054,-163.18016729,0.00014986,2]
[392865019,1762083039063,-205.8979048,0.00014986,2]
[392865020,1762083039073,-165.64410874,0.00014986,2]
[392865021,1762083039085,-155.27730624,0.00014986,2]
[392865022,1762083039095,-243.4259381,0.00014986,2]
[392865023,1762083039105,-280.89738462,0.00014986,2]
[392865024,1762083039114,-151.0,0.00014988,2]
[392865025,1762083039123,-496.47127164,0.00014991,2]
[392865026,1762083039133,-270.29570363,0.00014999,2]
[392865027,1762083039143,-430.60352393,0.00014999,2]
[392865028,1762083039152,-154.05870469,0.00014999,2]
[392865029,1762083039161,-500.0,0.00014999,2]
[392865030,1762083039170,-189.20699254,0.00014999,2]
[392865031,1762083039181,-500.0,0.00014999,2]
[392865032,1762083039190,-515.14114772,0.00014999,2]
[392865033,1762083039199,-500.0,0.00014999,2]
[392865034,1762083039208,-500.0,0.00014999,2]
[392865035,1762083039217,-500.0,0.00014999,2]
[392865036,1762083039227,-500.0,0.00014999,2]
[392865037,1762083039236,-500.0,0.00014999,2]
[392865038,1762083039247,-500.0,0.00014999,2]
[392865039,1762083039258,-500.0,0.00014999,2]
[392865040,1762083039267,-500.0,0.00014999,2]
[392865041,1762083039276,-500.0,0.00014999,2]
[392865042,1762083039286,-500.0,0.00014999,2]
[392865043,1762083039296,-500.0,0.00014999,2]
[392865044,1762083039305,-500.0,0.00014999,2]
[392865045,1762083039314,-511.89516831,0.00014999,2]
[392865046,1762083039324,-1297.78,0.00014999,2]
[392865047,1762083039333,-500.0,0.00014999,2]
[392865048,1762083039344,-423.51791763,0.00014999,2]
[392865049,1762083039354,-150.0,0.00014999,2]
[392865050,1762083039364,-150.0,0.00014999,2]
[392865051,1762083039374,-150.0,0.00014999,2]
[392865052,1762083039384,-150.0,0.00014999,2]
[392865053,1762083039394,-150.0,0.00014999,2]
[392865054,1762083039405,-150.0,0.00014999,2]
[392865055,1762083039417,-375.46061368,0.00014999,2]
[392865056,1762083039428,-150.81508919,0.00014999,2]
[392865057,1762083039438,-150.0,0.00014999,2]
[392865058,1762083039448,-150.0,0.00014999,2]
[392865059,1762083039458,-500.0,0.00014999,2]
[392865060,1762083039470,-500.0,0.00014999,2]
[392865061,1762083039481,-150.0,0.00014999,2]
[392865062,1762083039491,-150.0,0.00014999,2]
[392865063,1762083039501,-150.0,0.00014999,2]
[392865064,1762083039510,-150.0,0.00014999,2]
[392865065,1762083039520,-507.40251105,0.00014999,2]
[392865066,1762083039528,-794.0,0.00014999,2]
[392865067,1762083039537,-500.0,0.00014999,2]
[392865068,1762083039546,-150.0,0.00014999,2]
[392865069,1762083039556,-150.0,0.00014999,2]
[392865070,1762083039566,-500.0,0.00014999,2]
[392865071,1762083039575,-500.0,0.00014999,2]
[392865072,1762083039584,-500.0,0.00014999,2]
[392865073,1762083039592,-500.0,0.00014999,2]
[392865074,1762083039601,-376.38,0.00014999,2]
[392865075,1762083039612,-150.0,0.00014999,2]
[392865076,1762083039621,-150.0,0.00014999,2]
[392865077,1762083039630,-500.0,0.00014999,2]
[392865078,1762083039639,-150.0,0.00014999,2]
[392865079,1762083039649,-150.0,0.00014999,2]
[392865080,1762083039658,-150.0,0.00014999,2]
[392865081,1762083039668,-150.0,0.00014999,2]
[392865082,1762083039678,-150.0,0.00014999,2]
[392865083,1762083039687,-500.0,0.00014999,2]
[392865084,1762083039696,-500.0,0.00014999,2]
[392865085,1762083039706,-86972.89710119,0.00015,2]
[392865094,1762083040865,-1039661.17008162,0.00015,2]
[392865095,1762083040877,-292.55274634,0.00015,2]
[392865096,1762083040892,-1000.0,0.00015,2]
[392865097,1762083041079,-406.19,0.00015,2]
[392865112,1762083053522,-196.68190857,0.000149,2]
[392865113,1762083053532,-1027.9703451,0.000149,2]
[392865122,1762083064060,999.0,0.00014678,3]
[392865129,1762083100979,151.872832,0.00015,5]
[392865130,1762083101267,151.872832,0.00015,5]
[392865131,1762083112534,163.775086,0.00015,5]
[392865132,1762083112841,163.775086,0.00015,5]
[392865133,1762083113521,163.775086,0.00015,5]
[392865134,1762083119677,167.443817,0.00015,5]
[392865135,1762083119985,167.443817,0.00015,5]
[392865136,1762083120276,167.443817,0.00015,5]
[392865137,1762083120580,167.443817,0.00015,5]
[392865138,1762083120871,167.443817,0.00015,5]
[392865140,1762083127884,168.0,0.00014638,2]
[392865142,1762083139883,171.083601,0.00015,5]
[392865143,1762083140190,171.083601,0.00015,5]
[392865150,1762083146972,500.0,0.00012012,2]
[392865152,1762083150262,150.703869,0.00015,3]
[392865153,1762083150589,150.703869,0.00014975,3]
[392865154,1762083151312,155.263092,0.00015,5]
[392865155,1762083151421,150.70387,0.00015,3]
[392865156,1762083151492,150.703869,0.00015,5]
[392865157,1762083151640,155.263092,0.00015,5]
[392865158,1762083152119,155.263092,0.00015,5]
[392865161,1762083154030,155.263092,0.00015,5]
[392865162,1762083178002,200.0,0.00014182,2]
[392865230,1762083412360,10000.01,0.00014044,2]
[392865231,1762083412381,10000.01,0.00014044,2]
[392865232,1762083412403,10000.01,0.00014044,2]
[392865233,1762083412426,10000.01,0.00014044,2]
[392865234,1762083412447,10000.01,0.00014044,2]
[392865235,1762083412469,10000.01,0.00014044,2]
[392865236,1762083412491,10000.01,0.00014044,2]
[392865237,1762083412513,10000.01,0.00014044,2]
[392865238,1762083412535,10000.01,0.00014044,2]
[392865239,1762083412557,10000.01,0.00014044,2]
[392865240,1762083427520,-300.0,0.00014043,2]
[392865241,1762083430614,-262.42913533,0.00013974,2]
[392865242,1762083430671,-7780.0597187,0.00014044,2]
[392865243,1762083430723,-10000.01,0.00014044,2]
[392865244,1762083430871,-10000.01,0.00014044,2]
[392865245,1762083430976,-10000.01,0.00014044,2]
[392865246,1762083431090,-10000.01,0.00014044,2]
[392865247,1762083431197,-10000.01,0.00014044,2]
[392865248,1762083431293,-10000.01,0.00014044,2]
[392865249,1762083431406,-10000.01,0.00014044,2]
[392865250,1762083431505,-10000.01,0.00014044,2]
[392865251,1762083433643,-10000.01,0.00014044,2]
[392865252,1762083433793,-10000.01,0.00014044,2]
[392865253,1762083439239,500.0,0.00012012,2]
[392865254,1762083439592,500.0,0.00012012,2]
[392865255,1762083439946,500.0,0.00011015,2]
[392865256,1762083445309,500.0,0.00012012,2]
[392865257,1762083445429,512.85057417,0.00011,2]
[392865258,1762083448740,500.0,0.00012012,2]
[392865259,1762083448895,-10000.01,0.00014044,2]
[392865260,1762083449072,500.0,0.00012012,2]
[392865261,1762083449122,-2790.3502813,0.00014044,2]
[392865262,1762083449324,500.0,0.00012012,2]
[392865263,1762083449413,500.0,0.00011,2]
[392865264,1762083449667,500.0,0.00011,2]
[392865265,1762083449751,500.0,0.00011,2]
[392865266,1762083452002,500.0,0.00012012,2]
[392865267,1762083452380,501.55358022,0.00012012,2]
[392865268,1762083455023,500.0,0.00012012,2]
[392865269,1762083455707,210.7546471,0.00012012,2]
[392865270,1762083460941,707.00121008,0.00013973,2]
[392865271,1762083460963,2770.73014692,0.00013973,2]
[392865272,1762083464091,-288.2598902,0.000146,2]
[392865276,1762083505776,893.21759391,0.000146,2]
[392865282,1762083546846,642.0,0.00014597,2]
[392865283,1762083564976,642.0,0.00014604,2]
[392865285,1762083576204,642.0,0.00014521,2]
[392865297,1762083628976,221.66766337,0.00014573,2]
[392865299,1762083648959,200.0,0.000145,2]
[392865300,1762083656768,244.38,0.00013981,2]
[392865323,1762083788832,300.35,0.0001406,2]
[392865330,1762083825010,500.0,0.0001401,2]
[392865334,1762083851915,166.66,0.00013699,2]
[392865335,1762083852104,166.66,0.00013895,2]
[392865336,1762083852316,166.66,0.00014092,2]
[392865338,1762083852531,166.66,0.00014288,2]
[392865339,1762083852768,166.66,0.00014484,2]
[392865340,1762083860271,161.0,0.00015,15]
[392865344,1762083874292,1591.73,0.0001408,2]
[392865359,1762083913735,150.0,0.00013488,2]
[392865360,1762083913778,150.0,0.00013603,2]
[392865361,1762083913816,150.0,0.00013718,2]
[392865362,1762083913927,150.0,0.00013834,2]
[392865363,1762083913978,150.0,0.00013949,2]
[392865364,1762083914040,150.0,0.00014064,2]
[392865365,1762083914083,150.0,0.00014179,2]
[392865366,1762083914136,150.0,0.00014295,2]
[392865367,1762083914189,150.0,0.0001441,2]
[392865368,1762083914246,150.0,0.00014525,2]
[392865369,1762083914284,150.0,0.0001464,2]
[392865370,1762083914409,150.0,0.00013488,2]
[392865371,1762083914460,150.0,0.00013488,2]
[392865372,1762083914522,150.0,0.00013528,2]
[392865373,1762083914569,150.0,0.00013569,2]
[392865374,1762083914615,150.0,0.0001365,2]
[392865375,1762083914664,150.0,0.00013609,2]
[392865376,1762083914720,150.0,0.0001369,2]
[392865377,1762083914821,150.0,0.00013731,2]
[392865378,1762083914860,150.0,0.00013771,2]
[392865379,1762083914899,150.0,0.00013812,2]
[392865381,1762083915297,150.0,0.00013852,2]
[392865382,1762083915340,150.0,0.00013893,2]
[392865383,1762083915393,150.0,0.00013933,2]
[392865384,1762083915437,150.0,0.00013974,2]
[392865385,1762083915486,150.0,0.00014014,2]
[392865386,1762083915550,150.0,0.00014055,2]
[392865387,1762083915594,132.58233663,0.00014095,2]
[392865388,1762083915617,17.41766337,0.00014095,2]
[392865389,1762083915664,150.0,0.00014136,2]
[392865390,1762083915747,150.0,0.00014176,2]
[392865391,1762083915878,150.0,0.00014217,2]
[392865392,1762083915915,150.0,0.00014257,2]
[392865393,1762083915973,150.0,0.00014298,2]
[392865394,1762083916021,150.0,0.00014338,2]
[392865395,1762083916075,150.0,0.00014379,2]
[392865396,1762083916120,150.0,0.00014419,2]
[392865397,1762083916171,150.0,0.0001446,2]
[392865398,1762083916227,150.0,0.000145,2]
[392865400,1762083916273,150.0,0.00014541,2]
[392865401,1762083916328,150.0,0.00014581,2]
[392865402,1762083916372,150.0,0.00014622,2]
[392865403,1762083916411,150.0,0.00014662,2]
[392865404,1762083917046,150.0,0.00013488,2]
[392865405,1762083917088,150.0,0.00013559,2]
[392865406,1762083917143,150.0,0.0001363,2]
[392865407,1762083917191,150.0,0.00013702,2]
[392865408,1762083917251,150.0,0.00013773,2]
[392865409,1762083917355,150.0,0.00013844,2]
[392865410,1762083917403,150.0,0.00013916,2]
[392865411,1762083917477,150.0,0.00013987,2]
[392865412,1762083917538,150.0,0.00014059,2]
[392865413,1762083917605,150.0,0.0001413,2]
[392865414,1762083917676,150.0,0.00014201,2]
[392865415,1762083917753,150.0,0.00014273,2]
[392865416,1762083917829,150.0,0.00014344,2]
[392865417,1762083917899,150.0,0.00014415,2]
[392865418,1762083917974,150.0,0.00014487,2]
[392865419,1762083918034,150.0,0.00014558,2]
[392865420,1762083918112,150.0,0.00014629,2]
[392865421,1762083921201,201.34032179,0.00013488,2]
[392865422,1762083922566,150.0,0.00013488,2]
[392865423,1762083922623,150.0,0.00013553,2]
[392865424,1762083922695,150.0,0.00013618,2]
[392865425,1762083922775,150.0,0.00013683,2]
[392865426,1762083922842,150.0,0.00013748,2]
[392865427,1762083922962,150.0,0.00013813,2]
[392865428,1762083923015,150.0,0.00013879,2]
[392865429,1762083923066,150.0,0.00013944,2]
[392865430,1762083923122,150.0,0.00014009,2]
[392865431,1762083923196,150.0,0.00014074,2]
[392865432,1762083923264,150.0,0.00014139,2]
[392865433,1762083923332,150.0,0.00014204,2]
[392865434,1762083923411,150.0,0.0001427,2]
[392865435,1762083923478,150.0,0.00014335,2]
[392865436,1762083923562,150.0,0.000144,2]
[392865437,1762083923620,150.0,0.00014465,2]
[392865438,1762083923691,150.0,0.0001453,2]
[392865439,1762083924287,150.0,0.00014595,2]
[392865440,1762083924340,150.0,0.00014661,2]
[392865443,1762083932614,150.0,0.00013488,2]
[392865444,1762083932683,150.0,0.00013987,2]
[392865445,1762083932751,150.0,0.00014487,2]
[392865446,1762083932918,150.0,0.00013488,2]
[392865447,1762083932999,150.0,0.00013488,2]
[392865448,1762083933050,150.0,0.00013488,2]
[392865449,1762083933116,150.0,0.00013987,2]
[392865450,1762083933524,150.0,0.00014487,2]
[392865451,1762083935905,150.0,0.00013488,2]
[392865452,1762083935969,150.0,0.00014237,2]
[392865453,1762083937374,150.0,0.00013488,2]
[392865454,1762083937445,150.0,0.00013675,2]
[392865455,1762083937507,150.0,0.00013862,2]
[392865456,1762083937578,150.0,0.0001405,2]
[392865457,1762083937639,150.0,0.00014237,2]
[392865458,1762083937681,31.25201484,0.00014424,2]
[392865459,1762083937705,118.74798516,0.00014424,2]
[392865460,1762083937757,150.0,0.00014612,2]
[392865462,1762083942547,163.79976423,0.00013488,2]
[392865463,1762083942633,150.0,0.00013488,2]
[392865464,1762083942701,150.0,0.00013553,2]
[392865465,1762083942750,150.0,0.00013618,2]
[392865466,1762083942795,150.0,0.00013683,2]
[392865467,1762083942863,150.0,0.00013748,2]
[392865468,1762083942947,150.0,0.00013813,2]
[392865469,1762083943008,150.0,0.00013879,2]
[392865470,1762083943199,150.0,0.00013944,2]
[392865471,1762083943240,150.0,0.00014074,2]
[392865472,1762083943275,150.0,0.00014009,2]
[392865473,1762083943311,150.0,0.00014139,2]
[392865474,1762083943375,150.0,0.00014204,2]
[392865475,1762083943448,150.0,0.0001427,2]
[392865476,1762083943530,150.0,0.00014335,2]
[392865477,1762083943615,150.0,0.000144,2]
[392865478,1762083943692,150.0,0.00014465,2]
[392865479,1762083943793,150.0,0.0001453,2]
[392865480,1762083943875,150.0,0.00014595,2]
[392865481,1762083943941,150.0,0.00014661,2]
[392865484,1762083960897,493.29859977,0.00016,30]
[392865491,1762083989353,893.21759391,0.00014525,2]
[392865493,1762083990905,2751.0,0.00013873,2]
[392865564,1762084013895,4254.93,0.00013871,2]
[392865582,1762084074574,1635.63,0.00013986,2]
[392865591,1762084118015,347.86475283,0.00014626,2]
[392865593,1762084123595,117.36765326,0.00014594,2]
[392865594,1762084123617,104.30001011,0.00014594,2]
[392865641,1762084231695,-420.1439,0.00014672,2]
[392865642,1762084231704,-195.0,0.00014672,2]
[392865643,1762084231714,-300.0,0.00014672,2]
[392865644,1762084231723,-195.0,0.0001468,2]
[392865645,1762084231732,-166.66,0.00014681,2]
[392865646,1762084231742,-150.0,0.00014701,2]